bitfinex/quotes_ETHUSD_20260203
["timestamp","ask_amount","ask_price","bid_price","bid_amount"]
[1770159881025,12.12054064,2224.2,2222.6,0.00675584]
[1770159881222,12.12054064,2224.2,2222.7,0.943]
[1770159881431,12.12054064,2224.1,2222.3,0.00675584]
[1770159881639,12.12054064,2223.9,2222.3,0.00675584]
[1770159881801,12.12054064,2223.9,2222.4,0.943]
[1770159882006,12.12054064,2223.9,2221.4,12.10461199]
[1770159882231,12.12054064,2223.9,2222.2,0.001]
[1770159882232,12.12054064,2223.3,2222.2,0.001]
[1770159882457,12.12054064,2223.1,2221.3,0.65717481]
[1770159882727,12.12729648,2223.0,2221.4,0.943]
[1770159882898,13.81232613,2223.0,2221.4,0.943]
[1770159883299,13.80557029,2223.0,2221.6,0.00675584]
[1770159883499,13.80557029,2223.0,2221.5,0.00675584]
[1770159883716,13.80557029,2223.0,2221.6,0.943]
[1770159883917,1.38055703,2222.9,2221.6,0.943]
[1770159885108,1.38055703,2222.9,2221.7,0.00675584]
[1770159886233,12.12054064,2223.0,2222.1,0.00675584]
[1770159886414,12.12054064,2223.0,2222.2,0.944]
[1770159886813,12.12054064,2223.0,2221.7,0.00675584]
[1770159887012,12.12054064,2223.0,2222.0,0.944]
[1770159887329,12.82663557,2223.5,2222.0,0.944]
[1770159887531,12.12054064,2223.3,2222.0,0.944]
[1770159888032,12.12054064,2223.3,2222.1,0.00675584]
[1770159888228,12.12054064,2223.3,2222.2,0.00675584]
[1770159889121,12.12054064,2223.3,2222.3,0.944]
[1770159889320,12.12054064,2223.3,2221.8,0.00675584]
[1770159889522,0.00675584,2223.8,2221.9,0.944]
[1770159889523,13.46086106,2223.2,2221.9,0.944]
[1770159889831,12.12054064,2223.7,2222.4,0.00675584]
[1770159890037,12.12054064,2223.7,2222.5,0.00675584]
[1770159890432,12.12054064,2223.7,2222.6,0.00675584]
[1770159890812,12.12054064,2223.7,2221.7,1.13200048]
[1770159891129,12.12054064,2223.7,2222.2,0.95075584]
[1770159891331,1.21205406,2223.6,2222.7,0.00675584]
[1770159891703,1.21205406,2223.6,2222.6,0.00675584]
[1770159891904,1.21205406,2223.6,2222.6,0.95075584]
[1770159892531,12.12054064,2223.7,2223.0,0.00675584]
[1770159892818,12.06157553,2224.1,2222.9,0.00675584]
[1770159893333,0.0011,2224.1,2223.4,0.00675584]
[1770159893634,0.0011,2224.1,2223.3,0.944]
[1770159893819,12.06157553,2224.1,2223.0,0.944]
[1770159894019,1.20615755,2224.0,2223.0,0.944]
[1770159894630,0.0011,2223.9,2223.2,0.00675584]
[1770159894831,0.0011,2223.9,2223.4,0.00675584]
[1770159895135,0.0011,2223.9,2223.6,0.00675584]
[1770159896433,0.0011,2224.1,2223.8,0.00675584]
[1770159896636,0.0011,2224.1,2223.9,0.00675584]
[1770159896942,0.0011,2224.1,2222.8,0.00675584]
[1770159897113,0.0011,2224.1,2223.2,0.00675584]
[1770159897310,0.0011,2224.1,2222.9,1.23135178]
[1770159897515,12.99558606,2224.1,2223.0,0.944]
[1770159898043,12.99558606,2224.1,2222.8,0.944]
[1770159898229,1.29955861,2224.0,2223.0,0.00675584]
[1770159898409,14.29404467,2224.0,2222.8,0.00675584]
[1770159898743,14.29404467,2224.0,2222.9,0.944]
[1770159899536,12.99448606,2224.0,2222.9,0.944]
[1770159899741,12.99448606,2224.0,2222.9,0.943]
[1770159900442,0.0011,2224.1,2223.6,0.00675584]
[1770159900747,0.0011,2224.1,2223.4,0.00675584]
[1770159900954,0.0011,2224.1,2223.1,0.943]
[1770159901112,12.99558606,2224.1,2222.6,0.00675584]
[1770159901312,14.29404467,2224.0,2222.7,0.94975584]
[1770159901544,14.29404467,2224.0,2222.7,0.00675584]
[1770159902159,14.29404467,2224.0,2222.8,0.00675584]
[1770159902307,14.29404467,2224.0,2223.0,0.00675584]
[1770159902514,14.29404467,2224.0,2222.8,0.00675584]
[1770159902753,14.29404467,2224.0,2221.6,4.50782413]
[1770159902754,14.43075637,2223.9,2222.4,0.001]
[1770159902934,14.43075637,2223.9,2220.9,7.80120268]
[1770159902935,13.0012419,2223.2,2220.9,7.80120268]
[1770159903120,13.0012419,2222.8,2220.9,0.00675584]
[1770159903314,13.0012419,2222.8,2220.5,1.13259014]
[1770159903315,12.99448606,2222.4,2220.6,0.00675584]
[1770159903637,12.99448606,2222.2,2220.9,0.00675584]
[1770159903841,12.99448606,2222.2,2221.3,0.00675584]
[1770159904227,12.99448606,2222.9,2221.4,0.00675584]
[1770159904432,12.99448606,2222.9,2221.3,0.00675584]
[1770159904433,13.0012419,2222.7,2220.3,21.33076161]
[1770159904631,13.0012419,2222.7,2220.8,0.00675584]
[1770159904831,13.0012419,2222.7,2220.9,0.00675584]
[1770159905023,12.99448606,2222.5,2221.0,0.00675584]
[1770159905223,12.99448606,2222.5,2221.4,0.00675584]
[1770159905224,1.3920013,2222.4,2221.4,0.00675584]
[1770159905541,12.99448606,2222.5,2221.1,0.00675584]
[1770159905744,12.99448606,2222.5,2220.6,0.00675584]
[1770159905941,12.99448606,2222.3,2220.6,0.944]
[1770159906248,13.0012419,2222.3,2220.4,0.95075584]
[1770159906422,12.99448606,2222.3,2220.6,0.00675584]
[1770159906620,12.99448606,2222.1,2220.6,0.00675584]
[1770159906815,12.99448606,2222.1,2220.5,0.00675584]
[1770159907022,12.99448606,2222.1,2220.6,0.00675584]
[1770159907346,12.99448606,2222.1,2220.8,0.00675584]
[1770159907545,12.99448606,2222.1,2220.7,0.00675584]
[1770159907842,14.43331953,2222.0,2220.7,0.00675584]
[1770159908144,12.99448606,2222.0,2220.7,0.00675584]
[1770159908346,12.99448606,2222.0,2220.5,0.00675584]
[1770159908523,12.99448606,2222.0,2220.0,0.00675584]
[1770159908728,12.99448606,2221.6,2220.4,0.001]
[1770159908931,12.99448606,2221.6,2219.8,0.001]
[1770159908932,12.99448606,2221.0,2219.8,0.001]
[1770159909223,12.99448606,2221.0,2220.1,0.001]
[1770159909549,0.00675584,2221.6,2220.1,0.001]
[1770159909550,12.99448606,2221.8,2220.5,0.00675584]
[1770159909845,12.99448606,2221.8,2220.1,0.945]
[1770159910148,12.99448606,2221.8,2220.2,0.00675584]
[1770159910323,12.99448606,2221.6,2220.1,0.95175584]
[1770159910527,13.0012419,2221.4,2220.1,0.001]
[1770159910726,13.0012419,2221.4,2219.2,0.00675584]
[1770159910727,13.0012419,2221.2,2219.2,0.00675584]
[1770159911054,12.99448606,2221.0,2219.2,0.00675584]
[1770159911214,12.99448606,2221.0,2219.5,0.00675614]
[1770159911412,2.10773604,2221.5,2219.5,0.00675614]
[1770159911413,12.99448606,2220.8,2219.5,0.00675614]
[1770159911839,12.99448606,2220.8,2219.3,0.00675614]
[1770159912351,12.99448606,2220.8,2219.4,0.0067566]
[1770159912552,12.99448606,2220.8,2219.3,0.0067566]
[1770159912723,12.99448606,2220.8,2219.2,0.0067566]
[1770159912918,0.0067566,2221.3,2219.1,0.0067566]
[1770159912919,12.99448606,2220.6,2219.1,0.0067566]
[1770159913114,12.99448606,2220.6,2219.2,0.00675721]
[1770159913355,12.99448606,2220.6,2219.8,0.00675721]
[1770159913575,12.99448606,2220.6,2219.7,0.00675721]
[1770159913726,12.99448606,2220.6,2219.0,0.00675721]
[1770159914050,12.99448606,2220.4,2219.2,0.00675721]
[1770159914551,1.44238795,2220.5,2219.5,0.00675721]
[1770159914755,12.99448606,2220.9,2219.7,0.00675721]
[1770159914958,12.99448606,2220.9,2219.8,0.00675721]
[1770159915123,12.99448606,2220.9,2219.7,0.00675721]
[1770159915326,12.99448606,2220.9,2219.8,0.00675721]
[1770159915526,12.99448606,2220.9,2219.9,0.00675721]
[1770159915828,1.29944861,2220.8,2219.5,0.00675721]
[1770159916026,1.29944861,2220.8,2219.6,0.00675721]
[1770159916753,0.944,2221.4,2219.9,0.00675721]
[1770159916754,12.99448606,2221.4,2219.9,0.00675721]
[1770159917055,1.02075928,2222.1,2220.6,7.79444684]
[1770159917255,0.00675721,2221.7,2220.2,0.944]
[1770159917481,0.00675721,2221.7,2219.6,12.41034588]
[1770159917482,0.00675721,2221.1,2219.9,0.944]
[1770159917653,0.71329505,2221.8,2219.9,0.944]
[1770159917974,0.32090429,2222.1,2219.9,0.944]
[1770159917975,12.99448606,2221.9,2220.2,1.1259879]
[1770159918144,13.00124327,2221.9,2220.3,2.58348952]
[1770159918351,13.00124327,2221.9,2220.3,3.70945299]
[1770159918551,0.31414708,2222.1,2220.7,0.00675721]
[1770159918943,0.31414708,2222.1,2220.8,0.944]
[1770159919367,0.00675721,2221.7,2220.3,2.58348952]
[1770159919681,13.30863314,2222.1,2220.4,0.944]
[1770159919871,13.30863314,2222.1,2220.4,2.06987287]
[1770159920178,0.31414708,2222.1,2220.8,0.00675721]
[1770159920845,0.31414708,2222.1,2220.8,1.1324668]
[1770159921068,0.31414708,2222.1,2220.9,0.56422716]
[1770159921250,0.31414708,2222.1,2221.2,0.00675721]
[1770159921464,12.12394759,2223.1,2221.5,0.00675721]
[1770159921779,0.0011,2223.5,2221.9,0.00675721]
[1770159922167,0.0011,2223.5,2222.1,0.00675721]
[1770159922371,0.0011,2223.5,2221.8,0.00675721]
[1770159922576,0.0011,2223.5,2222.3,0.00675721]
[1770159922747,0.0011,2223.5,2222.2,0.95075721]
[1770159922954,0.0011,2223.5,2222.2,0.944]
[1770159923158,0.0011,2223.5,2222.3,0.00675721]
[1770159923355,0.0011,2223.5,2222.2,2.06900849]
[1770159923569,0.0011,2223.7,2222.6,0.00675721]
[1770159923795,0.0011,2223.7,2222.9,0.00675721]
[1770159923975,0.0011,2223.7,2222.2,0.95075721]
[1770159924278,0.0011,2223.7,2222.4,0.944]
[1770159924447,0.0011,2223.3,2222.5,0.944]
[1770159925050,0.0011,2223.3,2221.9,7.79444684]
[1770159925274,0.0011,2223.3,2222.0,1.72412041]
[1770159925481,0.0011,2223.3,2222.1,0.95075721]
[1770159926287,12.12504759,2223.3,2221.5,1.13211886]
[1770159926472,12.12504759,2223.3,2221.6,0.944]
[1770159926674,1.21250476,2223.2,2221.6,0.944]
[1770159926885,1.21250476,2223.2,2221.2,0.00675721]
[1770159926886,12.12394759,2222.9,2220.5,20.69480463]
[1770159927088,12.12394759,2222.9,2221.6,0.944]
[1770159927798,0.0011,2223.3,2221.8,0.00675721]
[1770159927954,0.0011,2223.3,2222.3,0.00675721]
[1770159928387,0.0011,2223.3,2222.2,0.00675721]
[1770159928685,0.0011,2223.3,2222.0,0.00675721]
[1770159928686,0.0011,2223.3,2222.0,7.80120405]
[1770159928895,0.0011,2223.3,2222.2,0.00675721]
[1770159929098,0.0011,2223.3,2222.4,0.00675721]
[1770159929469,0.0011,2223.7,2222.4,1.13165604]
[1770159929790,12.12394759,2223.5,2222.1,0.78079613]
[1770159930007,12.12394759,2223.5,2221.3,0.00675721]
[1770159930008,12.12394759,2222.8,2221.6,0.944]
[1770159930477,12.12394759,2223.3,2221.6,0.944]
[1770159930679,0.0011,2223.7,2222.2,0.00675721]
[1770159930883,12.12504759,2223.7,2222.2,0.00675721]
[1770159931186,12.12504759,2223.7,2222.3,0.95075721]
[1770159931378,12.12504759,2223.7,2222.3,0.944]
[1770159931575,13.33755235,2223.7,2222.3,0.944]
[1770159931811,13.33755235,2223.7,2222.4,0.944]
[1770159932012,13.33755235,2223.7,2222.0,0.00675721]
[1770159932210,13.33755235,2223.7,2222.1,0.944]
[1770159932425,13.33755235,2223.7,2222.1,0.95075721]
[1770159932609,1.33375523,2223.6,2222.3,0.00675721]
[1770159932810,1.33375523,2223.6,2222.1,0.944]
[1770159933122,12.12504759,2223.7,2221.6,0.10915721]
[1770159933421,12.12394759,2223.5,2221.9,0.00675721]
[1770159933589,12.12394759,2223.5,2221.8,0.95075721]
[1770159933791,12.12394759,2223.5,2221.2,1.1254889]
[1770159933998,12.12394759,2223.2,2221.4,0.00675721]
[1770159934391,12.12394759,2223.2,2221.5,0.944]
[1770159934594,12.12394759,2222.5,2220.9,0.944]
[1770159934793,12.12394759,2222.3,2220.9,0.944]
[1770159935415,12.12394759,2222.3,2220.8,0.00675721]
[1770159935621,12.12394759,2222.3,2220.8,0.944]
[1770159936845,12.12394759,2222.3,2220.4,0.00775721]
[1770159937019,12.12394759,2222.3,2220.6,0.00675721]
[1770159937220,1.33370181,2222.2,2220.7,0.00675721]
[1770159937429,1.33370181,2222.2,2221.1,0.00675721]
[1770159937630,1.13122814,2223.3,2221.1,0.00675721]
[1770159937631,1.21239476,2223.4,2222.2,0.00675721]
[1770159937840,12.82998948,2223.5,2222.2,0.00675721]
[1770159938045,12.82998948,2223.5,2222.2,0.944]
[1770159938046,12.12394759,2223.5,2222.2,0.944]
[1770159938205,12.12394759,2223.5,2222.5,0.00675721]
[1770159938508,0.0011,2223.7,2222.8,0.00675721]
[1770159939040,0.0011,2223.7,2222.6,0.95075721]
[1770159939216,0.0011,2223.7,2222.6,0.944]
[1770159939420,0.0011,2224.1,2222.7,1.23391538]
[1770159939621,0.0011,2224.1,2222.9,0.00675721]
[1770159939821,12.12504759,2224.1,2222.4,0.00675721]
[1770159940017,12.12504759,2224.1,2221.8,0.00675721]
[1770159940018,12.12394759,2223.8,2221.8,0.00675721]
[1770159940218,12.12394759,2223.6,2221.7,0.00675721]
[1770159940470,0.00675721,2223.3,2221.4,0.00675721]
[1770159940755,12.12394759,2223.0,2221.7,0.00675721]
[1770159941238,12.12394759,2223.0,2221.8,0.00675721]
[1770159941447,0.00675721,2223.9,2222.0,0.00675721]
[1770159941448,12.12394759,2223.5,2222.0,0.00675721]
[1770159941604,13.33634235,2223.4,2222.3,0.00675721]
[1770159941944,12.12394759,2223.4,2222.1,0.00675721]
[1770159942248,12.12394759,2223.4,2222.3,0.00675721]
[1770159942451,12.12394759,2223.4,2222.4,0.00675721]
[1770159942743,0.944,2224.0,2221.5,1.13211184]
[1770159942744,12.1307048,2223.9,2221.5,1.13211184]
[1770159942953,12.12394759,2223.7,2221.9,0.00675721]
[1770159943104,12.12394759,2223.7,2222.1,0.00675721]
[1770159943418,12.12394759,2223.7,2222.0,0.00675721]
[1770159943621,12.12394759,2223.7,2221.5,1.13209416]
[1770159943622,12.1307048,2223.5,2221.1,14.0258977]
[1770159943843,12.12394759,2223.1,2221.5,0.944]
[1770159944725,12.12394759,2222.9,2221.0,0.00775721]
[1770159944927,12.12394759,2222.9,2221.2,0.00675721]
[1770159945243,12.12394759,2222.7,2221.2,0.00675721]
[1770159945461,12.12394759,2222.7,2221.0,0.00775721]
[1770159945743,12.12394759,2222.7,2221.3,0.00675721]
[1770159945947,12.12394759,2222.7,2221.5,0.00675721]
[1770159946507,12.12394759,2222.7,2221.5,0.95075721]
[1770159946849,12.12394759,2222.7,2221.4,0.00675721]
[1770159946850,13.33634235,2222.7,2221.4,0.00675721]
[1770159947014,13.33634235,2222.7,2221.5,0.944]
[1770159947625,12.12394759,2222.7,2221.6,0.00675721]
[1770159947827,12.12394759,2222.7,2220.8,0.00775721]
[1770159948040,12.12394759,2222.7,2221.3,0.944]
[1770159948419,12.12394759,2222.7,2221.5,0.00675721]
[1770159949036,12.12394759,2222.7,2221.3,0.95075721]
[1770159949037,12.12394759,2222.7,2221.3,0.944]
[1770159949221,1.21239476,2222.6,2221.3,0.944]
[1770159949420,1.21239476,2222.6,2221.2,0.00675721]
[1770159949629,12.12394759,2222.4,2221.0,0.001]
[1770159949860,12.1307048,2222.0,2220.8,0.001]
[1770159950061,12.12394759,2222.0,2220.8,0.001]
[1770159950225,1.21239476,2221.9,2220.4,0.001]
[1770159950426,13.33634235,2221.9,2220.4,0.001]
[1770159950652,13.33634235,2221.9,2220.1,0.00775721]
[1770159950653,12.33775416,2221.1,2220.1,0.001]
[1770159950827,1.23445114,2221.0,2220.1,0.001]
[1770159951828,13.56544809,2221.0,2220.1,0.001]
[1770159952239,12.33099695,2221.0,2220.1,0.001]
[1770159952485,13.27499695,2221.5,2221.0,0.001]
[1770159952656,12.33099695,2221.5,2221.0,0.001]
[1770159952856,12.33099695,2221.5,2220.1,0.001]
[1770159953095,0.00675721,2221.9,2220.1,0.001]
[1770159953096,13.56409664,2221.4,2220.1,0.001]
[1770159953252,12.33099695,2221.4,2220.1,0.001]
[1770159953583,12.33099695,2221.4,2220.8,0.001]
[1770159953943,12.33099695,2221.4,2220.1,0.001]
[1770159955494,11.80756168,2221.3,2220.1,0.001]
[1770159955696,1.18075617,2221.2,2220.1,0.001]
[1770159955966,12.98831785,2221.2,2220.1,0.001]
[1770159956195,11.80756168,2221.2,2220.1,0.001]
[1770159958878,12.93308807,2221.2,2220.1,0.001]
[1770159959082,11.81431889,2221.0,2220.1,0.001]
[1770159959280,11.80756168,2220.8,2220.1,0.001]
[1770159960010,11.80756168,2220.8,2219.9,0.001]
[1770159960576,1.18210761,2220.9,2219.9,0.001]
[1770159960774,11.80756168,2221.3,2219.9,0.001]
[1770159961181,11.80756168,2220.8,2219.9,0.001]
[1770159961602,11.80756168,2220.8,2218.8,0.00675721]
[1770159961786,11.81431889,2220.8,2219.1,0.00675721]
[1770159961984,0.95075721,2220.9,2219.1,0.00675721]
[1770159961985,13.08339357,2220.7,2219.3,0.00675721]
[1770159962201,11.80756168,2220.7,2219.5,0.00675721]
[1770159962787,11.80756168,2221.8,2220.5,0.00675721]
[1770159962986,11.80756168,2221.8,2220.7,0.00675721]
[1770159963217,11.80756168,2221.8,2220.6,0.944]
[1770159965287,11.80756168,2221.6,2219.5,7.79512781]
[1770159965481,11.80756168,2221.5,2219.8,0.00675721]
[1770159965680,0.00675721,2221.7,2219.9,0.944]
[1770159965681,12.98831785,2221.4,2219.9,0.944]
[1770159966416,0.0011,2220.8,2219.7,0.001]
[1770159966631,0.0011,2220.8,2219.7,0.945]
[1770159966918,0.0011,2220.8,2219.8,0.00675721]
[1770159967084,0.0011,2220.8,2219.9,0.00675721]
[1770159967417,11.80866168,2220.8,2219.7,0.001]
[1770159967636,1.18086617,2220.7,2219.7,0.001]
[1770159967844,1.18086617,2220.7,2219.5,0.001]
[1770159967845,12.98842785,2220.7,2219.5,0.001]
[1770159968131,12.98842785,2220.7,2218.8,0.00675721]
[1770159968331,12.98842785,2220.7,2219.2,0.944]
[1770159968924,11.80756168,2220.6,2219.2,0.944]
[1770159969253,11.80756168,2219.9,2218.7,0.00675721]
[1770159969913,11.81431889,2220.2,2218.4,0.944]
[1770159970114,11.81431889,2220.2,2217.7,0.00675721]
[1770159970115,11.80756168,2219.7,2217.7,0.00675721]
[1770159970330,11.80756168,2219.5,2217.9,0.00675888]
[1770159970516,11.80756168,2219.5,2218.0,0.945]
[1770159970718,11.80756168,2219.5,2217.9,0.00675888]
[1770159971048,0.00675888,2219.8,2217.6,0.00675888]
[1770159971049,11.80756168,2219.3,2217.6,0.00675888]
[1770159971247,11.80756168,2219.8,2217.9,0.00676071]
[1770159971415,11.80756168,2219.8,2217.8,0.00676071]
[1770159971416,11.80756168,2219.3,2217.6,2.96593145]
[1770159971752,0.95176071,2219.9,2217.6,2.96593145]
[1770159971753,0.23373559,2219.8,2218.6,0.00676071]
[1770159971919,11.80756168,2220.2,2218.7,0.945]
[1770159972427,11.80756168,2220.2,2218.3,7.79512781]
[1770159972623,12.98831785,2220.1,2218.4,1.72518885]
[1770159972820,11.80756168,2220.0,2218.4,0.78018885]
[1770159973019,11.80756168,2220.0,2218.4,0.945]
[1770159973908,11.80756168,2220.0,2217.9,1.13392509]
[1770159973909,11.81432239,2219.8,2217.8,0.00676071]
[1770159974113,11.80756168,2219.7,2217.9,0.95176071]
[1770159974341,11.80756168,2219.7,2217.9,2.07893817]
[1770159974541,1.18075617,2219.6,2218.0,1.13389852]
[1770159974724,14.64040965,2220.1,2218.3,0.00676071]
[1770159975129,0.00676071,2220.0,2218.2,7.80188852]
[1770159975334,11.81432239,2220.0,2218.2,7.80188852]
[1770159975949,0.00676071,2219.9,2218.2,7.79512781]
[1770159976131,0.00676071,2219.6,2217.7,8.19479703]
[1770159976343,11.81432239,2219.5,2217.8,2.56658193]
[1770159976560,11.81432239,2219.3,2217.8,2.56658193]
[1770159976864,11.81432239,2219.3,2217.4,0.945]
[1770159976865,11.80756168,2218.7,2217.4,0.945]
[1770159977215,11.80756168,2218.7,2217.5,0.945]
[1770159978359,0.00676269,2218.6,2217.3,0.945]
[1770159978558,0.00676269,2218.4,2216.8,1.26639084]
[1770159978861,11.80756168,2218.4,2216.9,0.945]
[1770159979251,11.81432559,2218.9,2217.1,1.12758345]
[1770159979429,12.75256168,2219.4,2217.5,1.13415218]
[1770159979855,12.75256168,2219.4,2217.5,0.00676391]
[1770159980061,12.75256168,2219.4,2217.2,19.86322638]
[1770159980062,11.81432559,2219.1,2217.2,19.85646247]
[1770159980246,0.00676391,2218.6,2217.3,0.945]
[1770159980455,11.80756168,2219.1,2217.3,0.945]
[1770159980653,0.00676391,2218.9,2217.7,0.001]
[1770159980957,1.18143256,2219.0,2217.7,0.001]
[1770159981664,1.18143256,2219.0,2217.8,0.945]
[1770159982031,1.18819647,2219.0,2217.8,0.945]
[1770159982236,13.49686593,2219.0,2217.8,0.945]
[1770159982558,12.31543337,2219.5,2217.8,0.945]
[1770159982875,12.31543337,2219.5,2217.7,0.001]
[1770159982876,0.00676391,2219.1,2217.7,0.001]
[1770159983165,12.32219728,2219.1,2217.7,0.001]
[1770159983568,12.31543337,2219.6,2217.8,1.12723606]
[1770159983733,1.62838059,2219.9,2218.1,0.00676391]
[1770159983934,12.31543337,2220.1,2218.4,0.00676391]
[1770159984153,12.31543337,2220.1,2218.5,0.95176391]
[1770159984741,12.31653337,2220.6,2219.0,0.00676391]
[1770159985057,0.0011,2220.6,2219.3,0.00676391]
[1770159985280,0.0011,2220.8,2219.8,0.00676391]
[1770159985439,12.31543337,2221.6,2220.2,7.79512781]
[1770159985641,12.31543337,2222.1,2220.3,0.945]
[1770159985871,12.32219728,2221.8,2220.2,0.945]
[1770159986173,12.31543337,2221.8,2220.2,0.945]
[1770159986371,12.31543337,2221.8,2219.9,0.00676391]
[1770159986673,12.31543337,2221.8,2220.0,0.945]
[1770159986972,12.32219728,2221.3,2219.4,1.12642851]
[1770159987160,12.32219728,2221.3,2220.0,0.945]
[1770159988082,12.31543337,2221.3,2220.0,0.945]
[1770159988384,12.32219728,2220.6,2219.5,1.30266822]
[1770159988538,12.32219728,2220.1,2218.3,11.79785368]
[1770159988740,12.31543337,2220.1,2218.4,0.945]
[1770159989043,1.23221973,2220.0,2218.4,0.95176391]
[1770159989257,1.23221973,2220.0,2218.7,7.79512781]
[1770159989458,12.31543337,2220.6,2218.8,0.00676391]
[1770159989649,12.31543337,2220.6,2219.1,0.00676391]
[1770159989858,12.31543337,2220.6,2219.2,0.00676391]
[1770159990249,12.31543337,2221.1,2219.5,0.00676391]
[1770159990449,1.35012428,2221.0,2219.6,0.00676391]
[1770159990654,1.35012428,2221.0,2219.7,0.945]
[1770159990978,13.66555765,2221.0,2219.7,0.945]
[1770159992040,1.35012428,2221.0,2219.7,0.945]
[1770159992245,0.00676391,2221.8,2219.7,0.945]
[1770159992246,1.23221973,2222.0,2220.3,0.00676391]
[1770159992453,12.31543337,2222.0,2220.6,0.00676391]
[1770159992671,0.23368981,2222.6,2220.8,0.00676391]
[1770159992871,12.32219728,2221.9,2220.3,0.945]
[1770159993085,12.31543337,2221.9,2220.3,0.945]
[1770159993400,12.31543337,2221.5,2219.5,7.80189172]
[1770159993584,1.65148341,2221.9,2220.0,0.00676391]
[1770159993585,1.23221973,2221.4,2220.0,0.00676391]
[1770159993781,12.31543337,2221.7,2219.9,0.00676391]
[1770159993983,12.32219728,2221.5,2220.0,0.945]
[1770159994184,12.32219728,2221.5,2219.6,0.79786947]
[1770159994371,12.31543337,2221.5,2220.0,0.945]
[1770159995268,12.31543337,2221.5,2220.1,0.00676391]
[1770159995604,1.23154334,2221.4,2220.0,0.945]
[1770159995808,13.54697671,2221.4,2220.0,0.945]
[1770159996107,12.32219728,2221.3,2219.8,0.945]
[1770159996266,12.32219728,2221.3,2219.6,0.79110556]
[1770159996267,12.32219728,2221.2,2219.6,0.79110556]
[1770159996466,12.32219728,2221.2,2219.7,0.945]
[1770159996802,12.32219728,2221.0,2219.0,19.5997454]
[1770159997001,12.31543337,2221.0,2219.6,0.945]
[1770159997299,12.31543337,2221.5,2219.8,0.00676391]
[1770159997602,1.23154334,2221.4,2219.8,0.00676391]
[1770159998994,1.23154334,2221.4,2219.7,0.00676391]
[1770159999894,1.23154334,2221.4,2219.2,4.51288338]
[1770159999895,12.32219728,2221.2,2219.3,1.1264693]
[1770160000198,12.32219728,2221.2,2219.0,8.92173222]
[1770160000199,12.31543337,2220.9,2219.0,8.92173222]
[1770160000415,12.32219728,2220.6,2218.7,0.1024]
[1770160000571,1.23289612,2220.5,2219.0,0.00676391]
[1770160001199,1.23289612,2220.5,2219.3,0.00676391]
[1770160001375,12.31543337,2221.1,2219.7,0.00676391]
[1770160001575,12.31543337,2221.6,2219.8,0.95176391]
[1770160001898,12.31543337,2221.4,2219.9,0.00676391]
[1770160002102,12.31543337,2221.4,2220.0,0.95176391]
[1770160002419,0.0011,2221.8,2220.1,0.00676391]
[1770160002583,12.32329728,2221.8,2219.8,0.00676391]
[1770160002891,12.31543337,2221.6,2220.0,0.00676391]
[1770160003093,1.30365446,2221.7,2220.0,0.00676391]
[1770160003094,1.30365446,2221.7,2220.4,0.00676391]
[1770160003294,0.0011,2221.8,2220.4,0.00676391]
[1770160003494,0.0011,2221.8,2220.5,0.00676391]
[1770160004066,0.0011,2221.8,2220.7,0.00676391]
[1770160004264,0.0011,2221.8,2220.8,0.945]
[1770160004467,0.0011,2221.8,2220.7,0.945]
[1770160004900,0.0011,2221.8,2220.8,0.00676391]
[1770160005316,0.0011,2221.8,2221.0,0.00676391]
[1770160005517,0.0011,2221.8,2220.9,0.00676391]
[1770160005729,0.0011,2221.8,2220.8,0.00676391]
[1770160005884,0.0011,2222.0,2221.1,0.00676391]
[1770160006282,0.0011,2222.0,2221.2,0.945]
[1770160006486,0.0011,2222.0,2221.1,0.945]
[1770160006895,0.0011,2222.0,2221.0,0.945]
[1770160007416,0.0011,2222.0,2220.9,0.53366557]
[1770160007902,0.0011,2222.0,2220.8,0.945]
[1770160008210,0.0011,2221.8,2220.8,0.945]
[1770160008582,0.0011,2221.8,2220.7,0.945]
[1770160010522,0.0011,2221.8,2221.0,0.00676391]
[1770160010894,0.0011,2221.8,2220.7,0.00676391]
[1770160011098,0.0011,2221.8,2221.1,0.944]
[1770160011522,0.0011,2221.8,2221.1,0.95076391]
[1770160011723,0.0011,2221.8,2221.1,0.944]
[1770160012086,0.0011,2221.8,2220.7,1.91469306]
[1770160012087,0.0011,2221.8,2220.7,0.78892227]
[1770160012292,0.0011,2221.8,2220.7,0.78215836]
[1770160012505,0.0011,2221.8,2220.8,0.944]
[1770160012707,0.0011,2221.8,2220.6,0.944]
[1770160013207,0.0011,2221.8,2220.7,0.00676391]
[1770160013823,0.0011,2221.8,2220.6,0.944]
[1770160014043,0.0011,2221.8,2220.7,0.00676391]
[1770160014330,0.0011,2221.8,2221.0,0.00676391]
[1770160014832,0.0011,2221.8,2220.9,0.00676391]
[1770160015203,0.0011,2221.8,2221.1,0.00676391]
[1770160015402,0.0011,2221.8,2220.8,0.00676391]
[1770160015623,0.0011,2221.8,2220.9,0.944]
[1770160015824,0.0011,2221.8,2220.7,0.00676391]
[1770160016025,11.74009595,2221.8,2220.2,0.00676391]
[1770160016224,12.91300555,2221.7,2219.9,0.00676391]
[1770160016426,12.91300555,2221.7,2219.7,0.00676391]
[1770160016640,12.91300555,2221.7,2220.1,0.944]
[1770160016837,12.91300555,2221.7,2219.7,0.00676391]
[1770160017140,11.73899595,2221.5,2219.9,0.00676391]
[1770160019729,11.73899595,2221.5,2219.8,0.95076391]
[1770160020033,11.73899595,2221.5,2220.0,0.00676391]
[1770160020339,11.73899595,2221.5,2220.3,0.00676391]
[1770160020703,13.14360722,2221.6,2220.0,0.00676391]
[1770160020904,13.14360722,2221.6,2219.5,0.00676391]
[1770160020905,13.05335667,2221.5,2219.5,0.00676391]
[1770160021116,13.05335667,2221.5,2219.7,0.00676391]
[1770160021332,13.05335667,2221.5,2219.8,0.00676391]
[1770160021536,11.73899595,2221.4,2219.5,0.00676391]
[1770160021718,11.73899595,2221.4,2219.6,0.95076391]
[1770160021924,11.73899595,2221.2,2220.1,0.001]
[1770160022243,11.73899595,2221.1,2220.1,0.001]
[1770160022442,11.74575986,2220.6,2219.4,0.001]
[1770160022650,11.73899595,2220.9,2219.4,0.001]
[1770160022855,12.42233122,2220.8,2219.4,0.001]
[1770160023019,13.51963162,2221.3,2219.9,0.00676391]
[1770160023343,13.51963162,2221.3,2220.0,0.00676391]
[1770160023544,13.51963162,2221.3,2220.1,0.00676391]
[1770160023744,13.51963162,2221.3,2220.2,0.00676391]
[1770160023948,13.51963162,2221.3,2220.1,0.95076391]
[1770160024149,13.51963162,2221.3,2220.2,0.00676391]